Cogmind - Beta 13 @@@ ROGUE MODE // 2024.05.12 @ 10:05:35 Player: Skrub Result: Destroyed by Y-45 Defender with Heavy Assault Rifle Performance ------------- Evolutions (2) 1000 Regions Visited (4) 800 Robots Destroyed (63) 315 Value Destroyed (2597) 2597 Prototype IDs (5) 100 Alien Tech Used (0) 0 Bonus (491) 491 TOTAL SCORE: 5303 Bonus ------- High Alert Combat Kills 291 Entered Garrisons 200 Cogmind --------- Core Integrity 0/550 Matter 133/300 Energy 200/200 System Corruption 5% Temperature Cool (41) Movement Treading (163) Location -8/Garrison Parts ------- > --- POWER (2) -------- Micro Fission Core Micro Fission Core > --- PROPULSION (3) --- Light Treads Light Treads Armored Medium Treads > --- UTILITY (4) ------ Signal Interpreter Hacking Suite Advanced System Shield > --- WEAPON (2) ------- Minigun Katana > --- INVENTORY (5) ---- Improved Ion Engine Compact Battery (200) High-capacity Matter Pod (0) Advanced Beam Rifle Improved Remote Datajack Peak State ------------ > --- POWER ------------ Micro Fission Core Micro Fission Core > --- PROPULSION ------- Light Treads Light Treads Armored Medium Treads > --- UTILITY ---------- Signal Interpreter Light Armor Plating Hacking Suite Advanced System Shield > --- WEAPON ----------- Minigun Katana > --- INVENTORY -------- Improved Ion Engine Compact Battery High-capacity Matter Pod Authchip [R/Combat] Advanced Beam Rifle [Rating: 38] Favorites ----------- Power Ion Engine Engine Ion Engine Power Core Micro Fission Core Propulsion Light Treads Treads Light Treads Leg Aluminum Leg Hover Unit Gravmag System Utility Small Storage Unit Device Particle Charger Storage Small Storage Unit Processor Signal Interpreter Hackware Hacking Suite Protection Improved Light Armor Plating Weapon Light Assault Rifle Energy Gun Improved Medium Laser Ballistic Gun Light Assault Rifle Launcher Grenade Launcher Special Weapon Remote Datajack Slashing Weapon Katana Build | -11 -10 -9 -8 -8 ------- Run | Yrd Mat Mat Mat Gar Slots Evolved 4 | . . 2 2 . Power 1 | . . . 1 . Propulsion 1 | . . . 1 . Utility 2 | . . 2 . . Weapon . | . . . . . Parts Attached 60 | 5 9 14 5 27 Power 13 | 1 1 5 1 5 Engine 10 | 1 1 5 1 2 Core 3 | . . . . 3 Reactor . | . . . . . Propulsion 18 | 2 2 3 2 9 Treads 13 | 2 2 3 2 4 Leg 4 | . . . . 4 Wheel . | . . . . . Hover 1 | . . . . 1 Flight . | . . . . . Utility 8 | 1 1 3 1 2 Device 1 | . . 1 . . Storage 1 | 1 . . . . Processor 1 | . 1 . . . Hackware 2 | . . 1 . 1 Protection 3 | . . 1 1 1 Artifact . | . . . . . Weapon 21 | 1 5 3 1 11 Energy Gun 6 | . . 3 1 2 Energy Cannon . | . . . . . Ballistic Gun 5 | 1 2 . . 2 Ballistic Cannon . | . . . . . Launcher 6 | . 3 . . 3 Special Weapon 2 | . . . . 2 Impact Weapon . | . . . . . Slashing Weapon 2 | . . . . 2 Piercing Weapon . | . . . . . Special Melee Weapon . | . . . . . Unidentified Prototypes 3 | . . 2 1 . Parts Lost 24 | . . 8 . 16 Power 6 | . . 3 . 3 Propulsion 8 | . . 2 . 6 Utility 3 | . . 1 . 2 Weapon 7 | . . 2 . 5 Highest Loss Streak 9 | . . 5 . 9 To Critical Strikes . | . . . . . Average Slot Usage (%) 86 | . 85 84 100 86 Engine 11 | . 13 9 18 10 Core 1 | . . . . 3 Treads 20 | . 27 21 27 13 Leg 2 | . . . . 7 Hover 1 | . . . . 4 Storage 9 | . 14 11 9 6 Processor 8 | . 6 11 9 9 Hackware 6 | . . 7 9 9 Protection 2 | . . 3 9 3 Energy Gun 6 | . . 12 18 4 Ballistic Gun 6 | . 15 4 . 3 Launcher 4 | . 7 3 . 4 Slashing Weapon 1 | . . . . 2 Naked Turns . | . . . . . Heaviest Build 29 | 12 15 24 29 27 Greatest Support 67 | 40 40 46 66 67 Greatest Overweight (x) 3 | . 3 . . 3 Average Overweight (x) . | . . . . . Largest Inventory Capacity 8 | 8 8 8 8 8 Average Capacity 7 | 7 8 8 8 7 Most Carried 8 | 5 6 8 8 8 Average Carried 4 | 1 2 4 6 6 Final Capacity 8 | 8 8 8 8 5 Final Carried 8 | 1 2 6 8 5 Class Distribution -------------------- 68% | Mutant 27% | Scavenger-Mutant 4% | Hacker-Mutant Dominant Class ---------------- Mutant | -10/Materials Mutant | -9/Materials Mutant | -8/Materials Scavenger-Mutant | -8/Garrison Resources | -11 -10 -9 -8 -8 ----------- Run | Yrd Mat Mat Mat Gar Matter Collected 1394 | 234 117 358 59 626 Remotely . | . . . . . Salvage Created 1698 | . 336 536 59 767 Parts 116 | . 27 40 2 47 Haulers Intercepted . | . . . . . Recyclers Shooed 1 | . 1 . . . Parts Field Recycled . | . . . . . Retrieved Matter . | . . . . . Parts Self-Destructed . | . . . . . Prevented . | . . . . . Kills | -11 -10 -9 -8 -8 ------- Run | Yrd Mat Mat Mat Gar Combat Hostiles Destroyed 57 | . 14 19 1 23 Melee 1 | . . . . 1 Guns 28 | . 6 13 1 8 AOE 28 | . 8 6 . 14 Classes Destroyed 11 | . 5 2 . 4 Worker 3 | . 3 . . . Builder 1 | . 1 . . . Watcher 2 | . 1 1 . . Swarmer 9 | . 3 6 . . Cutter 2 | . . . . 2 Grunt 30 | . 11 7 . 12 Brawler 1 | . . . . 1 Duelist 4 | . . 1 . 3 Sentry 9 | . . 5 1 3 Hunter 1 | . . . . 1 Programmer 1 | . . . . 1 Best Kill Streak 8 | . 6 5 1 8 Combat Bots Only 8 | . 6 5 1 8 Max Kills in Single Turn 5 | . 5 2 1 2 Gunslinging . | . . . . . Exploded 2 | . 2 2 . 2 Melee 1 | . . . . 1 Uniques/NPCs Destroyed . | . . . . . Combat | -11 -10 -9 -8 -8 -------- Run | Yrd Mat Mat Mat Gar Hostile Shots Fired 312 | . 47 119 4 142 Missed 89 | . 15 39 1 34 Damage Taken 3469 | . 360 945 46 2118 Core 805 | . 32 215 . 558 Absorbed by Shields . | . . . . . Regen/Repaired (Parts) 41 | . 41 . . . Core Remaining (%) 77 | 100 87 46 . . Volleys Fired 178 | . 41 66 3 68 Largest 2 | . 2 2 2 2 Hottest 117 | . 50 112 117 117 Shots Fired 281 | . 68 109 6 98 Gun 219 | . 58 91 6 64 Cannon . | . . . . . Launcher 61 | . 10 18 . 33 Special 1 | . . . . 1 Kinetic 119 | . 58 39 . 22 Thermal 76 | . . 52 6 18 Explosive 61 | . 10 18 . 33 Electromagnetic 24 | . . . . 24 Robot Hit Streak 13 | . 7 13 4 7 Robot Miss Streak 5 | . 3 5 1 4 Penetration Max . | . . . . . Secondary Targets 1 | . . 1 . . Max Gunslinging Chain 1 | . . 1 . . Shots Hit Robots 167 | . 41 66 4 56 Core Hits 124 | . 34 34 2 54 Critical Kills . | . . . . . Critical Parts Destroyed . | . . . . . Critical Strikes 6 | . . 2 . 4 Burn 3 | . . 2 . 1 Sever 3 | . . . . 3 Melee Attacks 17 | . . . . 17 Impact . | . . . . . Slashing 17 | . . . . 17 Piercing . | . . . . . Sneak Attacks . | . . . . . Combat Hostiles . | . . . . . Follow-up Attacks . | . . . . . Damage Inflicted 5689 | . 1437 1385 72 2795 Guns 1782 | . 350 779 72 581 Cannons . | . . . . . Explosions 3661 | . 1087 606 . 1968 Melee 246 | . . . . 246 Ramming . | . . . . . Kinetic 673 | . 350 191 . 132 Thermal 1451 | . 544 588 72 247 Explosive 3117 | . 543 606 . 1968 Electromagnetic 202 | . . . . 202 Impact . | . . . . . Slashing 246 | . . . . 246 Piercing . | . . . . . Highest Corruption 5 | . . 2 3 5 Average Corruption 4 | . . 2 2 4 Corruption Purged . | . . . . . Corruption Blocked . | . . . . . Effects 31 | . . . . 31 Message Errors 8 | . . . . 8 Matter Fused 8 | . . . . 8 Heat Flow Errors 5 | . . . . 5 Energy Discharges 2 | . . . . 2 Parts Rejected 1 | . . . . 1 Data Loss (minor) 2 | . . . . 2 Data Loss (major) 1 | . . . . 1 Misfires 2 | . . . . 2 Weapon Failures 2 | . . . . 2 Overload Shots . | . . . . . Overflow Damage 100 | . 76 4 . 20 Projectiles . | . . . . . Explosions 100 | . 76 4 . 20 Melee . | . . . . . Knockbacks . | . . . . . Impact . | . . . . . Kinetic . | . . . . . Secondary . | . . . . . Self-Inflicted Damage 311 | . 34 49 . 228 Shots 15 | . 2 3 . 10 Rammed . | . . . . . Targets Rammed . | . . . . . Kicked . | . . . . . Crushed . | . . . . . Highest Temperature 620 | . 16 378 207 620 Average Temperature 114 | . 6 120 110 120 Received Heat Transfer 1008 | . 132 273 18 585 Effects 9 | . . 1 . 8 Shutdowns 3 | . . . . 3 Energy Bleed 1 | . . . . 1 Interference 2 | . . . . 2 Matter Decay 1 | . . 1 . . Short Circuit 1 | . . . . 1 Damage (core) 1 | . . . . 1 Siege Activations . | . . . . . Robots Corrupted . | . . . . . Combat Hostiles . | . . . . . Parts Fried 1 | . . . . 1 Impact Corruptions . | . . . . . Robots Melted . | . . . . . Combat Hostiles . | . . . . . Parts Melted 8 | . . 6 1 1 Heat Transferred 2658 | . 400 1555 148 555 Parts Sabotaged . | . . . . . Parts Stolen . | . . . . . Parts Stripped . | . . . . . Power Chain Reactions . | . . . . . Alert | -11 -10 -9 -8 -8 ------- Run | Yrd Mat Mat Mat Gar Peak Influence 891 | . 476 471 218 891 Initial 141 | . . 119 139 141 Average 414 | . 318 333 165 583 Maximum Alert Level 3 | . 2 2 1 3 Low Security (%) 18 | 100 24 14 83 5 Level 1 32 | . 47 47 16 15 Level 2 35 | . 27 37 . 44 Level 3 13 | . . . . 33 Level 4 . | . . . . . Level 5 . | . . . . . High Security . | . . . . . Max Security . | . . . . . Squads Dispatched 9 | . 3 4 2 . Investigation 5 | . 2 1 2 . Extermination . | . . . . . Reinforcement 4 | . 1 3 . . Assault . | . . . . . Garrison . | . . . . . Intercept . | . . . . . Searches Triggered . | . . . . . Construction Impeded . | . . . . . Haulers Reinforced . | . . . . . Active Scanning Responses . | . . . . . Cargo Convoy Interrupts . | . . . . . Stealth | -11 -10 -9 -8 -8 --------- Run | Yrd Mat Mat Mat Gar Distress Signals 7 | . 2 5 . . Communications Jammed . | . . . . . Distress Signals . | . . . . . Times Spotted 78 | . 21 28 1 28 Peak Tracking Total 9 | . 8 9 1 4 Tactical Retreats 2 | . 1 1 . . Traps | -11 -10 -9 -8 -8 ------- Run | Yrd Mat Mat Mat Gar Traps Triggered 9 | . 5 1 1 2 Indirectly . | . . . . . Trap Hack Attempts . | . . . . . Triggered . | . . . . . Disarmed . | . . . . . Reprogrammed . | . . . . . Reused . | . . . . . Traps Extracted . | . . . . . Installed . | . . . . . Triggered . | . . . . . Machines | -11 -10 -9 -8 -8 ---------- Run | Yrd Mat Mat Mat Gar Machines Disabled 12 | . 8 1 . 3 Max in Single Turn 7 | . 7 1 . 1 Garrison Relay 2 | . . . . 2 Machines Repaired . | . . . . . Machines Dismantled . | . . . . . Machines Sabotaged . | . . . . . Overloaded Fab Kills . | . . . . . Hacking | -11 -10 -9 -8 -8 --------- Run | Yrd Mat Mat Mat Gar Machines Accessed 14 | . 5 5 3 1 Terminals 8 | . 3 3 1 1 Fabricators . | . . . . . Repair Stations 1 | . 1 . . . Recycling Units 3 | . 1 1 1 . Scanalyzers 1 | . . 1 . . Garrison Access 1 | . . . 1 . Total Hacks 52 | . 24 15 10 3 Successful 31 | . 13 9 8 1 Failed 21 | . 11 6 2 2 Catastrophic 3 | . 1 1 . 1 Database Lockouts . | . . . . . Manual 25 | . 15 1 8 1 Terminals 29 | . 12 11 3 3 Fabricators . | . . . . . Repair Stations 8 | . 8 . . . Recycling Units 10 | . 4 3 3 . Scanalyzers 1 | . . 1 . . Garrison Access 4 | . . . 4 . Terminal Hacks 7 | . . 5 1 1 Prototype ID Bank 1 | . . 1 . . Emergency Access Points 1 | . . . . 1 Alert Level 1 | . . 1 . . Maintenance Status 1 | . . 1 . . Transport Status 1 | . . 1 . . Recall Investigation 1 | . . . 1 . Recall Reinforcements 1 | . . 1 . . Fabricator Hacks . | . . . . . Repair Station Hacks 3 | . 3 . . . Scan Component 2 | . 2 . . . Repair 1 | . 1 . . . Recycling Unit Hacks 6 | . 3 3 . . Process 2 | . 1 1 . . Report Inventory 2 | . 1 1 . . Retrieve Matter 2 | . 1 1 . . Scanalyzer . | . . . . . Garrison Access Hacks 2 | . . . 2 . Unlock Access 1 | . . . 1 . Coupler Status 1 | . . . 1 . Unauthorized Hacks 13 | . 7 1 5 . Terminals 7 | . 5 . 2 . Assimilate 2 | . 1 . 1 . Botnet 4 | . 3 . 1 . Operators 1 | . 1 . . . Fabricators . | . . . . . Repair Stations 1 | . 1 . . . Mechanics 1 | . 1 . . . Recycling Units 4 | . 1 . 3 . Reject 1 | . . . 1 . Recyclers 2 | . 1 . 1 . Tunnel 1 | . . . 1 . Scanalyzers 1 | . . 1 . . Extract 1 | . . 1 . . Garrison Access . | . . . . . Data Cores Recovered . | . . . . . Used . | . . . . . Hacking Detections 10 | . 4 3 2 1 Full Trace Events 7 | . 3 1 2 1 Feedback Events 1 | . . . 1 . Corruption 1 | . . . 1 . Feedback Blocked . | . . . . . Robot Schematics Acquired . | . . . . . Robots Built . | . . . . . Authchips . | . . . . . Time . | . . . . . Total Robot Build Rating . | . . . . . Part Schematics Acquired 2 | . . 2 . . Parts Built . | . . . . . Authchips . | . . . . . Time . | . . . . . Total Part Build Rating . | . . . . . Parts Repaired 1 | . 1 . . . Time 26 | . 26 . . . Parts Recycled . | . . . . . Recycled Matter 294 | . 102 192 . . Retrieved Matter 354 | . 102 252 . . Retrieved Components . | . . . . . Parts Scanalyzed . | . . . . . Part Schematics Acquired . | . . . . . Parts Damaged . | . . . . . Bothacking | -11 -10 -9 -8 -8 ------------ Run | Yrd Mat Mat Mat Gar Used RIF Installer . | . . . . . Robots Hacked 1 | . . . . 1 Non-combat . | . . . . . Combat 1 | . . . . 1 Robot Hacks Applied 1 | . . . . 1 parse_system 1 | . . . . 1 Relay Couplers Released 8 | . . . . 8 Machine Destruction 8 | . . . . 8 Fabnet Peak Effective % . | . . . . . Robots Rewired . | . . . . . Allies Hacked . | . . . . . Hacks Repelled . | . . . . . Allies | -11 -10 -9 -8 -8 -------- Run | Yrd Mat Mat Mat Gar Total Allies . | . . . . . Largest Group . | . . . . . Highest-Rated Group . | . . . . . Highest-Rated Ally . | . . . . . Total Orders . | . . . . . Ally Attacks . | . . . . . Total Damage . | . . . . . Kills . | . . . . . Allies Corrupted . | . . . . . Allies Melted . | . . . . . Intel | -11 -10 -9 -8 -8 ------- Run | Yrd Mat Mat Mat Gar Robot Analysis Total . | . . . . . Derelict Logs Recovered . | . . . . . Drone Launches . | . . . . . Drone Recoveries . | . . . . . Exploration | -11 -10 -9 -8 -8 ------------- Run | Yrd Mat Mat Mat Gar Turns Passed 3221 | 49 845 900 165 1262 Spaces Moved 1571 | 35 437 435 91 573 Core 27 | 15 6 . . 6 Treads 1295 | 20 431 435 91 318 Legs 165 | . . . . 165 Wheels . | . . . . . Hover 84 | . . . . 84 Flight . | . . . . . Fastest Speed 50 | 50 100 160 160 50 Average Speed 163 | 112 159 160 160 173 Slowest Speed 260 | 160 200 160 160 260 Overloaded Moves . | . . . . . Propulsion Burnouts . | . . . . . Robots Hopped . | . . . . . Cave-ins Triggered . | . . . . . Exploration Rate (%) 39 | 4 68 44 14 68 Regions Visited 4 Branch Regions . Pre-discovered Areas 1 | . . . 1 . Known Exits Taken 3 | . 1 1 1 . Unknown Exits Taken 1 | 1 . . . . Scrap Searched . | . . . . . Spaces Dug . | . . . . . Terrain Destroyed 260 | . 73 76 . 111 Melee . | . . . . . Projectile . | . . . . . AOE 260 | . 73 76 . 111 Terrain Rammed . | . . . . . Walls Destroyed . | . . . . . Machines Disabled . | . . . . . Actions | -11 -10 -9 -8 -8 --------- Run | Yrd Mat Mat Mat Gar Total 1932 | 45 524 538 105 720 Wait 31 | . 29 . . 2 Move 1567 | 34 436 434 90 573 Hop . | . . . . . Pick Up 59 | 6 9 19 5 20 Fast Attach 3 | . . . . 3 Attach 40 | 5 8 10 2 15 Detach . | . . . . . Swap 17 | . 1 4 3 9 Drop 15 | . . 5 2 8 Fire 178 | . 41 66 3 68 Melee 17 | . . . . 17 Ram . | . . . . . Kick . | . . . . . Crush . | . . . . . Escape Stasis 5 | . . . . 5 Rewire . | . . . . . Trap . | . . . . . Miscellaneous . | . . . . . Route ------- -11/Scrapyard -10/Materials (discovered 3 exits: *Mat x2 / [*Min]) -9/Materials (discovered 2 exits: *Mat x2) -8/Materials -8/Garrison (discovered 2 exits: *Fac x2) History --------- Turn | Location | Event 22 | -11/Scrapyard | Discovered new exit (range 15) 50 | -11/Scrapyard | Entered Materials 269 | -10/Materials | Discovered new exit (range 15) 312 | -10/Materials | Build established: Mutant 500 | -10/Materials | Discovered new exit (range 13) 576 | -10/Materials | Repaired Grenade Launcher 708 | -10/Materials | Discovered new exit (range 13) 892 | -10/Materials | Identified exit to Materials 895 | -10/Materials | Entered another Materials area 895 | -9/Materials | Evolved 2 slots: Utility x2 1288 | -9/Materials | Lost 5 parts (1p2n1u1w) 1350 | -9/Materials | Discovered new exit (range 4) 1363 | -9/Materials | Identified exit to Materials 1658 | -9/Materials | Discovered exit to Materials (range 4) 1714 | -9/Materials | Core integrity fell below 50% 1795 | -9/Materials | Entered another Materials area 1795 | -8/Materials | Evolved 2 slots: Power x1, Propulsion x1 1959 | -8/Materials | Identified exit to Garrison 1960 | -8/Materials | Entered Garrison 2014 | -8/Garrison | Triggered checkpoint 2068 | -8/Garrison | Garrison Relay disabled 2274 | -8/Garrison | Triggered checkpoint 2286 | -8/Garrison | Destroyed 8 combat bots 2288 | -8/Garrison | Triggered checkpoint 2291 | -8/Garrison | Lost 3 parts (1p2n) 2392 | -8/Garrison | Discovered new exit (range 10) 2435 | -8/Garrison | Identified exit to Factory 2462 | -8/Garrison | Triggered checkpoint 2604 | -8/Garrison | Build established: Scavenger-Mutant 2707 | -8/Garrison | Discovered exit to Factory (range 9) 2772 | -8/Garrison | Triggered checkpoint 2790 | -8/Garrison | Core integrity fell below 50% 2860 | -8/Garrison | Core integrity fell below 20% 2912 | -8/Garrison | Lost 9 parts (2p2n1u4w) 3200 | -8/Garrison | Triggered checkpoint 3222 | -8/Garrison | Destroyed by Y-45 Defender with Heavy Assault Rifle Last Messages --------------- 03104_ Dropped Authchip [R/Combat]. 03105_ Acquired Imp. Remote Datajack. 03116_ &TXQSYNMCSSYBIWXFK65OF8E2I&MOTEWO|A OT 03157_ System corrupted: Energy discharge (-70). 03160_ ALERT: Garrison interior compromised. 03200_ Beams of light sweep through the air. An alarm sounds. 03201_ Destroyed Heat Sink. 03204_ Y-45 Defender Lgt. Treads severed. 03208_ Lgt. Armor Plating destroyed. 03215_ Y-45 Defender heat short circuits Heat Sink. 03217_ System corrupted: Matter fused (-9). 03218_ Y-45 Defender heat short circuits Beam Rifle. 03221_ Y-45 Defender heat damages Hvy. Assault Rifle, Imp. Ion Engine, Broken Beam Rifle, Lgt. Armor Plating. 03221_ Destroyed Imp. Ion Engine. [Achievement: 5k Club] Map ----- +----------------------------------------------------+ | ??????# #?????????????????????????????????????# | | ####### ###########??????#++##############+#### | | # #??????# | | # ##### #??????# | | # #???# ######## #??????# ##################### | | # #???# ####???# #??????# #???????????????????? | | +???+ + #???# #?????## ##??????????????????? | | ###???# ## ???+ #?????# ###????????????????? | | ??????# ## ##### #?????# #####????????????? | | ??????# ## ## # ######## # #????????????? | | ??????# ## ### # # # # # #????????????? | | ??????# ## ## # # ## # #????????????? | | ####### ## # ## # ##????????????? | | + ! ![ ## #?????????????? | | ####### [ = # #?????????????? | | ??????##### # # # # ## ##?????????????? | | ??????????# ### ## # #####??????????????? | | ??????????## # #????????????????? | | ???????????### * #????????????????? | | ?????????????# #????????????????? | | ?????????????# = #????????????????? | | ?????????????### ^ ## ## = ###????????????????? | | ???????????##### ## # #########?????????? | | ?????????? [ #?????????? | | ?????????? #?????????? | | ???????????+??## @ ###"### #?????????? | | ???????????????## ## Y=Y## ##?# #?# #?????????? | | ????????????????# ## ?# #??# ### #?????????? | | ????????????????? ?####??# #??# + #?????????? | | ??????????????????????????# #### ### #?????????? | | ????????????????+?????????# + #?# #?????????? | | ??????????????????????????# #### #?# #?????????? | | ??????????+???????????????# #??# #?# #?????????? | | ??????????????????????????# ####"### ########### | | ??????????????????????????# ^ | | ??????????+??????+????????# | | ??????????????????????????####### ########"####### | | ????????????????????????????????# ######## #?????# | | ????????????????????????????????# ## #?????# | | ??????????+?????????????????????# ## #####"###???# | | ????????????????????????????????# ## #???# #"#???# | | ????????????????????????????????# ## #???# "#???# | | ????????????????????????????????# ##=#???# "#???# | | ????????????????????????????????# ##%#???# "#???# | | ????????????????????????????????# ##"##### #"#???# | | ????????????????????????????????# **!= ###???# | | ?????????????+??????????????????#"# !/######?????? | | ????????????????????????????????# # #??????????? | | ????????????????????????????????# #####??????????? | | ????????????????????????????????# #??????????????? | +----------------------------------------------------+ Best States ------------- Heat Dissipation 31 Energy Generation 25 Energy Capacity 430 Matter Stores 300 Matter Capacity 300 Sight Range 16 Terrain Scan Density 10 Armor Coverage 150 Evasion (%) 50 Recoil Reduction 3 Particle Charging 15 Offensive Hacking 10 Defensive Hacking 14 Authchip Count 1 Item Schematics ----------------- Lgt. EM Pulse Cannon | -9/Materials | Extracted Seismic Detector | -9/Materials | Extracted Robot Schematics ------------------ None Fabricated ------------ Nothing Alien Tech Used ----------------- None Achievements -------------- 5k Club Maybe Next Time I'll Detach My Launcher Challenges ------------ None Game ------ Seed ContainmentRemoteBoomstick Manual? 0 Play Time 00:42:02 Cumulative 4.2 hours Start 2024.05.12 @ 09:24:52 End 2024.05.12 @ 10:05:35 Sessions 1 Manual Loads 0 Difficulty Rogue Special Mode None Game No. 8 Rogue 8 Adventurer 0 Explorer 0 Win Type - Total 0 Types 0/0/0/0/0/0/0/0/0 Lore% 3 Gallery% 8 Achievement% 12 Wizard Run 0 Options --------- Layout 1 ASCII 0 Keyboard 0 Movement Mouse Keybinds 0 Fullscreen 1 Font 24/Smallcaps Map View 50x35 Zoom Use 0% Tactical HUD 1 Map Filters NONE Filters NONE Steam 1 RUN: f8ac3aca-2a06-4f60-b001-175836fccd5c